Workbook

Sheet Kalkulator
L1: Instrukcja , uwagi i ostrzeżenia:
B2: Projekt | C2: Przykład 1.2a | I2: Projektant
B3: Klient | C3: Konstruktor żelbetu | I3: Opracował | J3: Data | K3: Strona
B4: Lokalizacja | C4: http://chodor-projekt.net/encyclopedia/belki-zelbetowe/ | I4: LCH | J4: =TODAY() -> 2019-01-01 | K4: 25
B5: Uwagi | C5: Zginanie jedoosoiwe bez ściskania | I5: Sprawdził | J5: Rewizja | K5: Zlecenie
B6: Notatka | C6: Wpisz notatkę | I6: MK | J6: - | K6: ChP-1
B8: Nośność | D8: ΛR | E8: =IF(M_Ry=0,0,(M_y/M_Ry))^α_y+IF(M_Rz=0,0,(M_z/M_Rz))^α_z -> 1.000239794 | F8: wzór (87)*)
B9: współrzędne nośności | D9: MRy | E9: =M_Ry -> 172.8585496 | F9: kNm
B10: (+siła osiowa Nx niżej) | D10: MRz | E10: =M_Rz -> 0 | F10: kNm
B11: strefa ściskana betonu | D11: xY | E11: =Robol!x_Ry -> 112.6673152 | F11: mm
D12: xZ | E12: =Robol!x_Rz -> 0 | F12: mm
B13: Wynik sprawdzenia:
B14: Zginanie Y | C14: =IF(OR(R_y>0.01,R_y<-0.01),"BŁĄD", "OK") -> OK | D14: =IF(R_y>0.01," Brak równowagi !!! : naciśnij [sprawdż] i dalej zwiększ stal, beton lub przekrój ", "Zbilansowano przekrój") -> Zbilansowano przekrój
B15: Zginanie Z | C15: =IF(OR(R_z>0.01,R_z<-0.01),"BŁĄD", "OK") -> OK | D15: =IF(R_z>0.01,"Brak równowagi !!! : naciśnij [sprawdż]- jeśli dalej,to zwiększ stal, beton lub przekrój ", " Zbilansowano przekrój") -> Zbilansowano przekrój
D16: Po zbilansowaniu przekroju w kierunku Y i Z - patrz instrukcja obok | L16: Wprowadzaj dane tylko do niebieskich komórek
L17: Czerwone komunikaty niżej wskazują na błędy danych.
B18: SIŁY PRZEKROJOWE | L18: Pomarańczowe komunikaty są uwagami
B19: względem osi głównych (y-y), (z-z) | L19: Wymóg minimalnego stopnia zbrojenia:
B20: My - dodatni rozciąga włókna dolne | E20: My | F20: 172.9 | G20: kNm | L20: =IF(AND(Smb_Elem="Belka",A_suy < A_sminBy),"Belka: zbrojenie górne mniejsze od minimalnego Amin= "& ROUND(A_sminBy,1)&" mm2","-") -> -
B21: Mz - (dodatni rozciąga włókna prawe | E21: Mz | F21: 0 | G21: kNm | L21: =IF(AND(Smb_Elem="Belka",A_sly < A_sminBy),"Belka: zbrojenie dolne mniejsze od minimalnego Amin= "& ROUND(A_sminBy,1)&" mm2","-") -> -
B22: Nx- siła osiowa (dodatnia ściskająca). | E22: Nx | F22: 0 | G22: kN | L22: =IF(AND(Smb_Elem="Belka",A_suz< A_sminBz),"Belka: zbrojenie lewe mniejsze od minimalnego Amin= "& ROUND(A_sminBz,1)&" mm2","-") -> -
L23: =IF(AND(Smb_Elem="Belka",A_slz < A_sminBz),"Belka: zbrojenie prawe mniejsze od minimalnego Amin= "& ROUND(A_sminBz,1)&" mm2","-") -> -
B24: BETON I STAL | L24: =IF(AND(Smb_Elem="Płyta",A_suy< A_sminPy),"Płyta: zbrojenie górne mniejsze od minimalnego Amin= "& ROUND(A_sminPy,1)&" mm2","-") -> -
C25: Element | L25: =IF(AND(Smb_Elem="Płyta",A_sly< A_sminPy),"Płyta: zbrojenie dolne mniejsze od minimalnego Amin= "& ROUND(A_sminPy,1)&" mm2","-") -> -
B26: Wsp. γc | L26: =IF(AND(Smb_Elem="Słup",A_suy < A_sminS),"Słup: Zbrojenie górne mniejsze od minimalnego Amin= "& ROUND(A_sminS,1)&" mm2","-") -> -
B27: 1.5 | C27: Beton | L27: =IF(AND(Smb_Elem="Słup",A_sly < A_sminS),"Słup: Zbrojenie dolne mniejsze od minimalnego Amin= "& ROUND(A_sminS,1)&" mm2","-") -> -
C28: Stal | L28: =IF(AND(Smb_Elem="Słup",A_suz < A_sminS),"Słup: Zbrojenie lewe mniejsze od minimalnego Amin= "& ROUND(A_sminS,1)&" mm2","-") -> -
L29: =IF(AND(Smb_Elem="Ściana",A_sly < A_sminŚ),"Ściana: zbrojenie strony <góra > mniejsze od minimalnego Amin= "& ROUND(A_sminŚ,1)&" mm2","-") -> -
B30: PRZEKRÓJ | L30: =IF(AND(Smb_Elem="Ściana",A_slz < A_sminŚ),"Ściana: zbrojenie strony <dół> mniejsze od minimalnego Amin= "& ROUND(A_sminP,1)&" mm2","-") -> -
B31: h | C31: 450 | D31: mm | E31: górne cuy | F31: 34 | G31: mm | L31: Wymóg maksymalnego stopnia zbrojenia:
B32: b | C32: 300 | D32: mm | E32: dolne cly | F32: 31 | G32: mm | L32: =IF(AND(Smb_Elem="Belka",A_sly > A_smaxB),"Belka: zbrojenie dolne większe od maksymalnego poza zakładami Amax= "& ROUND(A_smaxB,1)&" mm2","-") -> -
E33: lewe cuz | F33: 31 | G33: mm | L33: =IF(AND(Smb_Elem="Płyta",A_sly > A_smaxP),"Płyta: zbrojenie dolne większe od maksymalnego poza zakładami Amax= "& ROUND(A_smaxP,1)&" mm2","-") -> -
E34: prawe clz | F34: 31 | G34: mm | L34: =IF(AND(Smb_Elem="Słup",(A_sly+A_suy) > A_smaxS),"Słup: zbrojenie łączne większe od maksymalnego Amax= "& ROUND(A_smaxS,1)&" mm2","-") -> -
L35: =IF(AND(Smb_Elem="Ściana",A_sly > A_smaxŚ),"Ściana: zbrojenie dolne większe od maksymalnego poza zakładami Amax= "& ROUND(A_smaxŚ,1)&" mm2","-") -> -
B36: ZBROJENIE | L36: Wymogi konstrukcyjne (beton, stal, otulenie):
C37: Pręt Ø | D37: Liczba | E37: Pole | F37: % zbrojenia | G37: co (odstęp) | L37: =IF(OR(f_ck>99,f_ck<20),"Beton niekonstrukcyjny fck<25","-") -> -
B38: górne Øuy | C38: 12 | D38: 2 | E38: =PI()/4*Fi_uy^2*n_uy -> 226.1946711 | F38: =A_suy/h/b -> 0.001675516082 | G38: =IF(n_uy>0,(b-c_uz-c_lz-n_uy*Fi_uy)/(n_uy-1)," ") -> 214 | L38: =IF(c_uz >65,"Sprawdż otulenie górne z warunku klasy ekspozycji","-") -> -
B39: dolne Øly | C39: 18 | D39: 5 | E39: =PI()/4*Fi_ly^2*n_ly -> 1272.345025 | F39: =E39/C$31/C$32 -> 0.009424777961 | G39: =IF(n_ly>0,(b-c_uz-c_lz-n_ly*Fi_ly)/(n_ly-1)," ") -> 37 | L39: =IF(c_uy >65,"Sprawdż otulenie górne z warunku klasy ekspozycji","-") -> -
C40: wypełnienie pomiędzy prętami narożnymi | L40: =IF(c_ly >65,"Sprawdż otulenie górne z warunku klasy ekspozycji","-") -> -
B41: lewe Øuz | C41: 18 | D41: 0 | E41: =PI()/4*(Fi_uz^2*n_uz+IF(n_uy>0,Fi_uy^2,0)+ IF(n_ly>0,Fi_ly^2,0)) -> 367.5663405 | F41: =E41/C$31/C$32 -> 0.002722713633 | G41: =IF(n_uz>0,(h-c_uy-c_ly-IF(n_uy>0,Fi_uy,0)-IF(n_uz>0,Fi_ly,0)-Fi_uz*n_uz)/(n_uz+1)," ") ->  | L41: =IF(OR(s_ly<Fi_ly,s_ly<20),"Za mały prześwit między oprętami >ly<.","-") -> -
B42: prawe Ølz | C42: 18 | D42: 0 | E42: =PI()/4*(Fi_lz^2*n_lz+IF(n_uy>0,Fi_uy^2,0)+ IF(n_ly>0,Fi_ly^2,0)) -> 367.5663405 | F42: =E42/C$31/C$32 -> 0.002722713633 | G42: =IF(n_lz>0,(h-c_uy-c_ly-IF(n_uy>0,Fi_uy,0)-IF(n_ly>0,Fi_ly,0)-Fi_lz*n_lz)/(n_lz+1)," ") ->  | L42: =IF(OR(s_ly<Fi_uy,s_ly<20),"Za mały prześwit między oprętami >uy<.","-") -> -
L43: =IF(OR(s_lz<Fi_lz,s_lz<20),"Za mały prześwit między oprętami >lz<.","-") -> -
L44: =IF(OR(s_uz<Fi_uz,s_uz<20),"Za mały prześwit między oprętami >uz<.","-") -> -
B45: *) Powołania na wzory w arkuszu i teoria do kalkulatora wg artykułu www. http://chodor-projekt.net/encyclopedia/belki-zelbetowe
L46: =IF(s_uy < 50,"Maksymalna średnica kruszywa "& ROUND(s_uy-5,1) & " mm","-") -> -
L47: =IF(s_ly < 50,"Maksymalna średnica kruszywa "& ROUND(s_ly-5,1) & " mm","-") -> Maksymalna średnica kruszywa 32 mm
B49: Arkusz CHP Ż - w.1.3.xls | © 2018 Leszek Chodor, Chodor-Projekt , sp. z o.o.

Sheet Kotwienie
A1: Projekt | B1: Wpisz nazwę projektu | H1: Wpisz Projektanta | K1: Dla Projektanta:
A2: Klient | B2: Wpisz klienta | F2: 0 | H2: Opracował | I2: Data | J2: Strona | K2: Wprowadzaj dane tylko do niebieskich komórek
A3: Lokalizacja | B3: Wpisz lokalizację inwestycji | H3: LCH | I3: =TODAY() -> 2019-01-01 | J3: 25
A4: Uwagi | B4: Wpisz uwagi | H4: Sprawdził | I4: Rewizja | J4: Zlecenie
A5: Notatka | B5: Wpisz notatkę | H5: MK | I5: - | J5: ChP-1
B7: Wyniki
C8: Długość zakotwienia | D8: lbd | E8: =L_brqd*α1*α2*α3*α4*α5/Fi_zaklad -> 23.08779153 | F8: Ф
C9: minimalna | D9: lbd,min | E9: =MAX(0.3*L_brqd,10*Fi_zaklad,100)/Fi_zaklad -> 11.30620192 | F9: Ф
C10: Długość zakładu | D10: l0 | E10: =α6*l_bd -> 32.65106791 | F10: Ф
C11: minimalna | D11: lo,min | E11: =MAX(0.3*L_brqd*α6,15*Fi_zaklad, 200)/Fi_zaklad -> 15.9893841 | F11: Ф
K12: =IF(AND(Smb_Elem="słup",A_suy < A_sminS),"Słup: Zbrojenie górne mniejsze od minimalnego Amin= "& ROUND(A_sminS,1)&" mm2","-") -> -
B13: Dane z Kalkulatora | K13: =IF(AND(Smb_Elem="słup",A_sly < A_sminS),"Słup: Zbrojenie dolne mniejsze od minimalnego Amin= "& ROUND(A_sminS,1)&" mm2","-") -> -
D14: beton | E14: =SmbBeton -> C25/30 | K14: Strefa dobrej przyczepności wystąpi gdy:
D15: stal | E15: =SmbStal -> 18G2A | K15: * pręty są nachylone pod kątem 45-90o
D16: element | E16: =Smb_Elem -> Belka | K16: * w elemencie h < 250 mm
C17: naprężenia z Kalkulatora | D17: σsly | E17: =Robol!G102 -> 309.5652174 | F17: MPa | K17: * w pasie 250 mm od powierzchni dolne elemnt o grubości h> 250 mmj
C18: jeśli znasz wpisz lub przepisz σsly | D18: σsd | E18: 435 | F18: MPa | K18: * w pasie 300 mm od wierzchu elementu o grubosci h> 600 mm
C19: Średnica pręta
C20: dolne zbrojenie z kalkulatora | D20: фly | E20: =Fi_ly -> 18 | K20: Rodzaje zakotwień
C21: jeśli znasz wpisz lub przepisz σsly | D21: ф | E21: 16
B23: Dane dodatkowe
C24: sposób wytężenia
C25: kształt prętów
C26: rodzaj zakotwienia | K26: Sposób przyspojenia
C27: warunki przyczepności
C28: przyspojono pręty ?
C29: jeśli przypojono, to sposób
C30: otulenie dolne | D30: c | E30: 25 | F30: mm
C31: otulenie boczne | D31: c1 | E31: 25 | F31: mm
C32: rozstaw prętów | D32: a | E32: 60 | F32: mm
C33: nacisk poprzeczny | D33: p | E33: 0 | F33: MPa
C35: udział prętów uciąglanych | D35: As | E35: 50 | F35: % zbrojenia w uciąglanego pasie 1,3 l0
C36: zbrojenie ⊥ wzdłuż lb | D36: ΣAst | E36: 2.51 | F36: cm2
E37: Podpowiedż: | F37: ΣAst =[ 25% ф co 200 mm]= | H37: =PI()*(Fi_zaklad/10)^2/4*1000/200*0.25 -> 2.513274123 | I37: cm2]
B47: Arkusz CHP Ż02 Belka, v.1.0.xls | © 2018 Leszek Chodor, Chodor-Projekt , sp. z o.o.

Sheet Beton i stal
A1: Tabela betonów
A2: Beton | B2: Symbol | C2: fck | D2: fcd | E2: η | F2: λ | G2: fcm | H2: fctm | I2: Ecm | J2: n | K2: εc1 | L2: εcu1 | M2: εc2 | N2: εcu2 | O2: ξu | P2: εc3 | Q2: εcu3 | R2: k1 ,k3 | S2: k2=k4 | T2: ξuS1) | U2: ϕ0 2) | V2: ρmin,b1)
A3: zwykły BZ | B3: (-) | C3: MPa | D3: MPa | E3: (-) | F3: (-) | G3: MPa | H3: MPa | I3: GPa | J3: (-) | K3: ‰ | P3: ‰ | R3: (-) | S3: (-) | T3: (-) | U3: (-) | V3: %
B4: C12/15 | C4: 12 | D4: =C4/1.4 -> 8.571428571 | E4: 1 | F4: 0.8 | G4: =C4+8 -> 20 | H4: =0.3*C4^(2/3) -> 1.572444837 | I4: =22*(0.1*G4)^0.3 -> 27.08517709 | J4: 2 | K4: =0.7*G4^0.31 -> 1.771810776 | L4: 3.5 | M4: 2 | N4: 3.5 | O4: =(T4+0.208)/2 -> 0.4124291188 | P4: 1.75 | Q4: 3.5 | R4: 0.44 | S4: =1.25*(0.6+1.4/3.5) -> 1.25 | T4: =1/(1+500/1.15/(200*N4)) -> 0.6168582375 | U4: 3.3 | V4: 0.13
B5: C16/20 | C5: =VALUE(MID(B5,2,2)) -> 16 | D5: =C5/1.4 -> 11.42857143 | E5: 1 | F5: 0.8 | G5: 24 | H5: 1.904881262 | I5: =22*(0.1*G5)^0.3 -> 28.60790489 | J5: 2 | K5: 1.87483704 | L5: 3.5 | M5: 2 | N5: 3.5 | O5: =(T5+0.208)/2 -> 0.4124291188 | P5: 1.75 | Q5: 3.5 | R5: 0.44 | S5: =1.25*(0.6+1.4/3.5) -> 1.25 | T5: =1/(1+500/1.15/(200*N5)) -> 0.6168582375 | U5: 3 | V5: 0.13
B6: C20/25 | C6: =VALUE(MID(B6,2,2)) -> 20 | D6: 14.28571429 | E6: 1 | F6: 0.8 | G6: 28 | H6: 2.210418899 | I6: =22*(0.1*G6)^0.3 -> 29.96195105 | J6: 2 | K6: 1.966604505 | L6: 3.5 | M6: 2 | N6: 3.5 | O6: 0.4124291188 | P6: 1.75 | Q6: 3.5 | R6: 0.44 | S6: 1.25 | T6: 0.6168582375 | U6: 2.777777778 | V6: 0.13
B7: C25/30 | C7: 25 | D7: 17.85714286 | E7: 1 | F7: 0.8 | G7: 33 | H7: 2.56496392 | I7: =22*(0.1*G7)^0.3 -> 31.47580621 | J7: 2 | K7: 2.069366248 | L7: 3.5 | M7: 2 | N7: 3.5 | O7: 0.4124291188 | P7: 1.75 | Q7: 3.5 | R7: 0.44 | S7: 1.25 | T7: 0.6168582375 | U7: 2.555555556 | V7: =0.26*H7/500*100 -> 0.1333781238
B8: C30/37 | C8: 30 | D8: 21.42857143 | E8: 1 | F8: 0.8 | G8: 38 | H8: 2.896468154 | I8: =22*(0.1*G8)^0.3 -> 32.83656803 | J8: 2 | K8: 2.16187687 | L8: 3.5 | M8: 2 | N8: 3.5 | O8: 0.4124291188 | P8: 1.75 | Q8: 3.5 | R8: 0.44 | S8: 1.25 | T8: 0.6168582375 | U8: 2.277777778 | V8: 0.150616344
B9: C35/45 | C9: 35 | D9: 25 | E9: 1 | F9: 0.8 | G9: 43 | H9: 3.209962442 | I9: 34.0771462 | J9: 2 | K9: 2.246328469 | L9: 3.5 | M9: 2 | N9: 3.5 | O9: 0.4124291188 | P9: 1.75 | Q9: 3.5 | R9: 0.44 | S9: 1.25 | T9: 0.6168582375 | U9: 2.022222222 | V9: 0.166918047
B10: C40/50 | C10: 40 | D10: 28.57142857 | E10: 1 | F10: 0.8 | G10: 48 | H10: 3.508821286 | I10: 35.22046229 | J10: 2 | K10: 2.324249914 | L10: 3.5 | M10: 2 | N10: 3.5 | O10: 0.4124291188 | P10: 1.75 | Q10: 3.5 | R10: 0.44 | S10: 1.25 | T10: 0.6168582375 | U10: 1.822222222 | V10: 0.1824587069
B11: C45/55 | C11: 45 | D11: 32.14285714 | E11: 1 | F11: 0.8 | G11: 53 | H11: 3.795446994 | I11: 36.28318822 | J11: 2 | K11: 2.396754545 | L11: 3.5 | M11: 2 | N11: 3.5 | O11: 0.4124291188 | P11: 1.75 | Q11: 3.5 | R11: 0.44 | S11: 1.25 | T11: 0.6168582375 | U11: 1.655555556 | V11: 0.1973632437
B12: C50/60 | C12: 50 | D12: 35.71428571 | E12: 1 | F12: 0.8 | G12: 58 | H12: 4.071626425 | I12: 37.27786909 | J12: 2 | K12: 2.464681005 | L12: 3.5 | M12: 2 | N12: 3.5 | O12: 0.4124291188 | P12: 1.75 | Q12: 3.5 | R12: 0.44 | S12: 1.25 | T12: 0.6168582375 | U12: 1.5 | V12: 0.2117245741
A13: wysokiej wytrzymałości BWW | B13: C55/67 | C13: 55 | D13: 39.28571429 | E13: 0.98 | F13: 0.75 | G13: 63 | H13: =2.12*LN(1+0.1*(C13+8)) -> 4.214293618 | I13: 38.21420646 | J13: =1.4+23.4*(0.01*(90-C13))^4 -> 1.75114625 | K13: 2.528678467 | L13: =2.8+27*(0.01*(98-G13))^4 -> 3.20516875 | M13: =2+0.085*(C13-50)^0.53 -> 2.199467906 | N13: =2.6+35*(0.01*(90-C13))^4 -> 3.12521875 | O13: =(T13+0.16)/2 -> 0.3748802626 | P13: =1.75+0.01375*(C13-50) -> 1.81875 | Q13: =2.6+35*(0.01*(90-C13))^4 -> 3.12521875 | R13: 0.54 | S13: =1.25*(0.6+1.4/N13) -> 1.309960803 | T13: 0.5897605253 | V13: 0.2191432681
B14: C60/75 | C14: 60 | D14: 42.85714286 | E14: 0.95 | F14: 0.78 | G14: 68 | H14: 4.354742315 | I14: 39.09987371 | J14: 1.58954 | K14: 2.589260839 | L14: 3.0187 | M14: 2.288017533 | N14: 2.8835 | O14: 0.3650765772 | P14: 1.8875 | Q14: 2.8835 | R14: 0.54 | S14: 1.356901335 | T14: 0.5701531544 | V14: 0.2264466004
B15: C70/85 | C15: 70 | D15: 50 | E15: 0.9 | F15: 0.75 | G15: 78 | H15: 4.61047365 | I15: 40.74281778 | J15: 1.43744 | K15: 2.701763728 | L15: 2.8432 | M15: 2.415876924 | N15: 2.656 | O15: 0.3549531903 | P15: 2.025 | Q15: 2.656 | R15: 0.54 | S15: 1.408885542 | T15: 0.5499063805 | V15: 0.2397446298
B16: C80/95 | C16: 80 | D16: 57.14285714 | E16: 0.9 | F16: 0.75 | G16: 88 | H16: 4.838650658 | I16: 42.24423817 | J16: 1.40234 | K16: 2.804708098 | L16: 2.8027 | M16: 2.515576591 | N16: 2.6035 | O16: 0.3524801034 | P16: 2.1625 | Q16: 2.6035 | R16: 0.54 | S16: 1.422172076 | T16: 0.5449602068 | V16: 0.2516098342
B17: C90/105 | C17: =VALUE(MID(B17,2,2)) -> 90 | D17: 64.28571429 | E17: 0.9 | F17: 0.75 | G17: 98 | H17: 5.044637804 | I17: 43.6305315 | J17: 1.4 | K17: 2.899867292 | L17: 2.8 | M17: 2.600496833 | N17: 2.6 | O17: 0.3523132969 | P17: 2.3 | Q17: 2.6 | R17: 0.54 | S17: 1.423076923 | T17: 0.5446265938 | V17: 0.2623211658
B18: C100/115 | C18: =VALUE(MID(B18,2,3)) -> 100 | D18: 71.42857143 | E18: 0.9 | F18: 0.75 | G18: 108 | H18: 5.232371007 | I18: 44.92104053 | J18: 1.40234 | K18: 2.988542279 | L18: 2.8027 | M18: 2.675885342 | N18: 2.6035 | O18: 0.3524801034 | P18: 2.4375 | Q18: 2.6035 | R18: 0.54 | S18: 1.422172076 | T18: 0.5449602068 | V18: 0.2720832923
A19: 1) σcu2=Ecm · εcu2 , dla stali B500 (fyd=500/1.15) | 2) Współczynnik pełzania dla wilgotności RH=50% , t0=28 dni, h0=250 mm
A21: Tabela stali | M21: Współczynnik interakcji My-Mz
A22: Stal | B22: Oznaczenie stali | D22: Zakres średnic | E22: Granica plast. | G22: Wytrz. | H22: k | I22: εyd | J22: εuk | K22: Epl
B23: gatunek | C23: w projekcie | E23: fyk | F23: fyd | G23: fuk | H23: (ft/fy)k | I23: fyd/Es | K23: 2)
D24: mm | E24: MPa | F24: MPa | G24: MPa | H24: (-) | I24: ‰ | J24: % | K24: GPa
A25: A | B25: BSt 500KR | C25: B500-A | D25: 6-12 | E25: 500 | F25: =E25/1.15 -> 434.7826087 | G25: 550 | H25: =G25/E25 -> 1.1 | I25: =F25/E_s -> 2.173913043 | J25: 2.5 | K25: =(H25-1)/(J25*10/E25-1/E_s) -> 2.222222222
B26: RB500 | D26: 4-16 | E26: 500 | F26: 434.7826087 | G26: 550 | H26: 1.1 | I26: 2.173913043 | J26: 2.5 | K26: 2.222222222
B27: RB 500W | D27: 6-40 | E27: 500 | F27: 434.7826087 | G27: 550 | H27: 1.1 | I27: 2.173913043 | J27: 2.5 | K27: 2.222222222
B28: BSt 500S | D28: 6-14 | E28: 500 | F28: 434.7826087 | G28: 550 | H28: 1.1 | I28: 2.173913043 | J28: 2.5 | K28: 2.222222222
A29: B | B29: RB400 | C29: B400-B | D29: 6-40 | E29: 400 | F29: 347.826087 | G29: 550 | H29: 1.375 | I29: 1.739130435 | J29: 5 | K29: 3.125
B30: RB400W | D30: 6-40 | E30: 400 | F30: 347.826087 | G30: 440 | H30: 1.1 | I30: 1.739130435 | J30: 5 | K30: 0.8333333333
B31: 34GS | D31: 6-32 | E31: 410 | F31: 356.5217391 | G31: 440 | H31: 1.073170732 | I31: 1.782608696 | J31: 5 | K31: 0.6256517205
B32: RB500 | C32: B500-B | D32: 6-40 | E32: 500 | F32: 434.7826087 | G32: 550 | H32: 1.1 | I32: 2.173913043 | J32: 5 | K32: 1.052631579
B33: RB 500Wz | D33: 8-32 | E33: 500 | F33: 434.7826087 | G33: 550 | H33: 1.1 | I33: 2.173913043 | J33: 5 | K33: 1.052631579
B34: BST 500S | D34: 8-32 | E34: 500 | F34: 434.7826087 | G34: 550 | H34: 1.1 | I34: 2.173913043 | J34: 5 | K34: 1.052631579
B35: BSt 500WR | D35: 8-32 | E35: 500 | F35: 434.7826087 | G35: 550 | H35: 1.1 | I35: 2.173913043 | J35: 5 | K35: 1.052631579
A36: C | B36: 18G2A | C36: B355-C | D36: 10-32 | E36: 356 | F36: 309.5652174 | G36: 480 | H36: 1.348314607 | I36: =F36/E_s -> 1.547826087 | J36: 7.5 | K36: =(H36-1)/(J36*10/E36-1/E_s) -> 1.693526359
B37: 35G2Y | C37: B400-C | D37: 6-20 | E37: 410 | F37: 356.5217391 | G37: 550 | H37: 1.341463415 | I37: 1.782608696 | J37: 7.5 | K37: 1.919122687
B38: 20G2VYb | C38: B490-C | D38: 6-28 | E38: 490 | F38: 426.0869565 | G38: 590 | H38: 1.204081633 | I38: 2.130434783 | J38: 7.5 | K38: 1.378359752
B39: B500SP | C39: B500-C | D39: 8-40 | E39: 500 | F39: 434.7826087 | G39: 575 | H39: 1.15 | I39: 2.173913043 | J39: 7.5 | K39: 1.034482759
A40: 1) Es= | B40: 200 | C40: GPa | D40: 2) Epl=(k-1)/(εuk/fyk-1/Es)

Sheet Robol
B1: OBLICZENIA kalkulatora zbrojenia podłużnego | L1: Zakotwienie i zakłady
B2: rozdział Nx | C2: nNy | D2: =n_Ny -> 1 | M2: Opcje wyboru
C3: nNz | D3: =n_Nz -> 0 | F3: xRy | G3: 112.6673152 | H3: xRy/h | I3: =x_Ry/h -> 0.2503718115 | M3: wytężenie | N3: rozciąganie
C4: Ny | D4: =N_x*n_Ny -> 0 | F4: xRz | G4: 0 | H4: xRz/b | I4: =x_Rz/b -> 0 | M4: rozciąganie | N4: ściskanie
C5: Nz | D5: =N_x*n_Nz -> 0 | M5: kształt pręta | N5: proste
C6: ny=Ny/NRy | D6: =N_y/N_Ry -> 0 | M6: inne | N6: inne
C7: nz=Nz/NRz | D7: =IF(N_Rz=0,0,N_z/N_Rz) -> 0 | M7: zakotwienie pręta | N7: bez haka
B8: Wsp interkacji | C8: αy | D8: =IF(M_z=0,1,G133) -> 1 | N8: zagięte lub hak
C9: αz | D9: =IF(M_y=0,1,G134) -> 0.9815 | E9: Zintegowane równania równowagi przekroju w kierunkach y-y i z-z: | M9: zagięte lub hak | N9: pętla
B10: Ry | C10: =(M_y-M_cy)*1000- ((N_y+2*F_sly-F_cy)*d_0y +(F_sly*a_ly+F_suy*a_uy)) -> -7.348426152e-07 | M10: warunki przyczepności | N10: dobre
B11: Rz | C11: =(M_z-M_cz)*1000- ((N_z+2*F_slz-F_cz)*d_0z +(F_slz*a_lz+F_suz*a_uz)) -> 0 | M11: dobre | N11: inne
M12: przyspojenie | N12: nie
C13: 0 | M13: nie | N13: tak
M14: Sposób przyspawania | N14: w narożu belki
M15: pręty rozdzielcze | N15: poprzeczne pod
M16: w narożu belki | N16: poprzeczne nad
M18: Współczynniki ogólne
M19: współczynnik K | N19: =IF(Sposób_przyspawania=w_narozu,0.1,IF(Sposób_przyspawania=poprzeczne_pod,0.05,0)) -> 0.1 | O19: (-)
M20: współczynnik η1 | N20: =IF(Warunki_przyczepności="dobre",1,0.7) -> 1 | O20: (-)
M21: współczynnik η1 | N21: =IF(Fi_zaklad<= 32,1,0.01*(132-Fi_zaklad)) -> 1 | O21: (-)
M22: Przyczepność fbd | N22: =2.25*N20*N21*f_ctk05/1.4 -> 2.88558441 | O22: MPa
M23: otulenie efektywne cd | N23: =IF(Zakotwienie_preta=bez_haka,MIN(0.5*a_kotwa,c_1kotwa, c_kotwa),IF(Zakotwienie_preta=hak,MIN(0.5*a_kotwa,c_1kotwa),c_kotwa)) -> 25 | O23: mm
M24: pole poj. pręta As | N24: =Fi_zaklad^2 *PI()/4/100 -> 2.010619298 | O24: cm2
M25: efektywny pas zakładu 1,3 l0 | N25: =1.3*l_0 -> 42.44638829 | O25: mm
M26: min zbrojenie ⊥ | N26: =IF(Smb_Elem="belka", 0.25*A_skotwa,0) -> 0 | O26: cm2
M27: wsp zbrojenia λ | N27: =(Kotwienie!E36-N26)/A_skotwa -> 1.248371585 | O27: (-)
M28: Obliczenia pomocnicze
M29: α1 | N29: =IF(Ksztalt_preta=N5,1, IF(c_d>3*Fi_zaklad,0.7,1)) -> 1
M30: α2 | N30: =IF(Ksztalt_preta=N5, 1-0.15*(c_d-Fi_zaklad)/Fi_zaklad, 1-0.15*(c_d-3*Fi_zaklad)/Fi_zaklad) -> 1.215625
B31: BUFOR danych pomocniczych | N31: =IF(N30<0.7,0.7,IF(N30>1,1,N30)) -> 1
A32: Element | B32: Beton | D32: Stal | H32: Wysokości użyteczne | I32: Wysokości użyteczne | M32: α3 | N32: =1-N19*N27 -> 0.8751628415
A33: Belka | B33: Symbol | C33: C25/30 | D33: Symbol | E33: 18G2A | G33: xx | H33: a_xx | I33: dxx | N33: =IF(N32<0.7,0.7,IF(N32>1,1,N32)) -> 0.8751628415
A34: Belka | B34: fck | C34: =VLOOKUP(SmbBeton,tBeton,2,0) -> 25 | D34: fyk | E34: =VLOOKUP(SmbStal,tStal,4,0) -> 356 | F34: MPa | G34: 0y | I34: =h/2 -> 225 | J34: mm | M34: α4 | N34: 0.7
A35: Płyta | B35: fcd | C35: =VLOOKUP(SmbBeton,tBeton,3,0) -> 17.85714286 | D35: fyd | E35: =VLOOKUP(SmbStal,tStal,5,0) -> 309.5652174 | F35: MPa | G35: uy | H35: =c_uy+Fi_uy/2 -> 40 | I35: =a_uy -> 40 | J35: mm | M35: α5 | N35: =1-0.004*p_kotwa -> 1
A36: Słup | B36: γc | C36: =Kalkulator!B27 -> 1.5 | D36: (ft/fy)k | E36: =VLOOKUP(SmbStal,tStal,7,0) -> 1.348314607 | F36: (-) | G36: ly | H36: =c_ly+Fi_ly/2 -> 40 | I36: =h-a_ly -> 410 | J36: mm | M36: α6 | N36: =(procent_kotwa/25)^0.5 -> 1.414213562
A37: Ściana | B37: fcd(1,5) | C37: =IF(C36=1.4,f_cd,f_cd*1.4/1.5) -> 16.66666667 | D37: εuk | E37: =VLOOKUP(SmbStal,tStal,8,0) -> 1.547826087 | F37: % | G37: luy | I37: =h-a_ly-a_uy -> 370 | J37: mm | N37: =IF(N36<1,1,IF(N36>1.5,1.5,N36)) -> 1.414213562
B38: η | C38: =VLOOKUP(SmbBeton,tBeton,4,0) -> 1 | D38: Epl | E38: =VLOOKUP(SmbStal,tStal,9,0) -> 7.5 | F38: GPa | G38: 0z | I38: =b/2 -> 150 | J38: mm | M38: Współczynniki zakotwienia i zakładu
B39: λ | C39: =VLOOKUP(SmbBeton,tBeton,5,0) -> 0.8 | D39: εsy | E39: =f_yd/E_s -> 1.547826087 | F39: ‰ | G39: uz | H39: =c_uz+Fi_uz/2 -> 40 | I39: =a_uz -> 40 | J39: mm | M39: Kształt prętów α1 | N39: =IF(wytezenie=$N$3,N29,1) -> 1
B40: fctm | C40: =VLOOKUP(SmbBeton,tBeton,7,0) -> 2.56496392 | G40: lz | H40: =c_lz+Fi_lz/2 -> 40 | I40: =b-a_lz -> 260 | J40: mm | M40: Otulenie betonem α2 | N40: =IF(wytezenie=$N$3,N31,1) -> 1
B41: Ecm | C41: =VLOOKUP(SmbBeton,tBeton,8,0) -> 31.47580621 | D41: (-) | G41: luz | I41: =b-a_lz-a_uz -> 220 | J41: mm | M41: Brak przyspojenia α3 | N41: =IF(wytezenie=$N$3,N32,1) -> 0.8751628415
B42: n | C42: =VLOOKUP(C33,tBeton,9,0) -> 2 | D42: ‰ | M42: Jeśli przyspojone α4 | N42: =N34 -> 0.7
B43: εcu2 | C43: =VLOOKUP(SmbBeton,tBeton,13,0) -> 3.5 | D43: (-) | M43: Nacisk poprzeczny α5 | N43: =IF(wytezenie=$N$3,N35,1) -> 1
B44: ξu | C44: =VLOOKUP(SmbBeton,tBeton,14,0) -> 0.4124291188 | D44: (-) | M44: Udział uciąglanych α6 | N44: =IF(wytezenie=$N$3,N36,1) -> 1.414213562
B45: k1(k3) | C45: =VLOOKUP(SmbBeton,tBeton,17,0) -> 0.44 | D45: (-) | M45: Długości kotwienia i zakłasu
B46: k2(k4) | C46: =VLOOKUP(SmbBeton,tBeton,18,0) -> 1.25 | D46: (-) | M46: Pods. zakotw. lbrqd | N46: =Fi_zaklad/4*Kotwienie!E18/N22 -> 602.9974358 | O46: mm
B47: Φ0 | C47: =VLOOKUP(SmbBeton,tBeton,19,0) -> 0.6168582375 | D47: MPa | F47: Min zbrojenie | I47: Max zbrojenie
B48: fctk,0,5 | C48: =0.7*f_ctm -> 1.795474744 | E48: kierunek | F48: y | G48: z | I48: AsmaxP=0,04 *b*h | J48: =0.04*b*h -> 5400 | K48: mm²
C49: płyta | D49: AsminP=max{0,26fctm/fyk;0,0013}*b*dl | G49: =MAX(0.26*f_ctm/f_yk,0.0013)*b*d_lz -> 146.116484 | I49: AsmaxB=0,04 *b*h | K49: mm²
C50: belka | D50: AsminB=AsminP | F50: =MAX(0.26*f_ctm/f_yk,0.0013)*h*d_ly -> 345.6216833 | G50: =MAX(0.26*f_ctm/f_yk,0.0013)*b*d_lz -> 146.116484 | H50: mm² | I50: AsmaS=0,04 *b*h | K50: mm²
C51: słup | D51: AsminS=max ( NEdmax*0,10/fyd; 0.002*b*h) | F51: =MAX(N_x*0.1/f_yd, 0.002*b*h) -> 270 | H51: mm² | I51: AsmaxŚ=0,004 *b*h | J51: =0.004*b*h -> 540 | K51: mm²
C52: ściana | D52: AsminŚ=0.002*b*h/2 | F52: =0.002*b*h/2 -> 135 | H52: mm²
B54: KALKULATOR zbrojenia podłużnego
C55: Obciązenie względne | F55: my | G55: =M_y/(b/100)/(d_ly^2/10000)/f_cd -> 0.1919968273 | H55: (-)
F56: mz | G56: =M_z/(h/100)/(d_lz^2/10000)/f_cd -> 0 | H56: (-)
F57: nx | G57: =N_x/(b/100)/(d_ly/100)/f_cd -> 0 | H57: (-)
D58: Pole przekroju 1 pręta | F58: A1uy | G58: =PI()*(Fi_uy/10)^2/4 -> 1.130973355 | H58: cm2
E59: górne | F59: A1ly | G59: =PI()*(Fi_ly/10)^2/4 -> 2.544690049 | H59: cm2
E60: dolne | F60: A1uz | G60: =PI()*(Fi_uz/10)^2/4 -> 2.544690049 | H60: cm2
E61: lewe | F61: A1lz | G61: =PI()*(Fi_lz/10)^2/4 -> 2.544690049 | H61: cm2
E62: prawe
B63: Obliczenia wstępne (klasyczne)
D64: ZGINANIE Y
D65: wsp redystrybucji | F65: δ | G65: 0.9 | H65: (-) | I65: (36), (40)
D66: graniczna wysokość ściskana | F66: ξu | G66: =(δ-k_13)/k_24 -> 0.368 | H66: (-)
D67: efektywna, graniczna wysokość | F67: ξefff,u | G67: =G66*λ -> 0.2944 | H67: (-) | I67: (43)
D68: graniczna nośność przekroju | F68: mu | G68: =η*(G67-(λ*G66)^2/2) -> 0.25106432 | H68: (-) | I68: (44)
D69: nadwyżka nad my | F69: Δmy | G69: =my-mu -> -0.05906749271 | H69: (-)
D70: warunek zbrojenia podwójnego | F70: Asu> 0 ? | G70: =IF(G69>0,"TAK","NIE") -> NIE | H70: (-) | I70: (45)
D71: wyróżnik y | F71: Wy | G71: =1- 2*my/η -> 0.6160063454 | H71: (-)
D72: efektywna wysokość strefy ściskanej | F72: ξ1,effy | G72: =IF(G71>0, 1 - SQRT(G71),0) -> 0.2151392828 | H72: (-)
D73: wysokość strefy ściskanej klasycznie | F73: x1Ky | G73: =G72*d_ly/λ -> 110.2588824 | H73: mm
D74: efektywne ramie sił | F74: ζ1effy | G74: =IF(G71>0,(1+SQRT(G71)/η)/2,1) -> 0.8924303586 | H74: (-)
D75: siła beton | F75: Fc1y | G75: =b*d_ly*f_cd/1000000 -> 2.196428571 | H75: kN
D76: Zbrojenie rozciągane pojedyńczo Asll | F76: Asl_1y | G76: =my*G75/G74/f_yd*10000 -> 15.26457241 | H76: cm2 | I76: (49)
D77: Zbrojenie ściskaneAsu | F77: Asu2y | G77: =IF(G69>0,G69*G75/f_yd*10000,0) -> 0 | H77: cm2 | I77: (51)
D78: Zbrojenie rozciągane podwójnie Asl+Asu | F78: Asl2y | G78: =G76+G77 -> 15.26457241 | H78: cm2 | I78: (52)
D79: ZGINANIE Z
D80: nadwyżka nad mz | F80: Δmz | G80: =mz-mu -> -0.25106432 | H80: (-)
D81: warunek zbrojenia podwójnego | F81: Asu> 0 ? | G81: =IF(G80>0,"TAK","NIE") -> NIE | H81: (-)
D82: wyróżnik | F82: Wz | G82: =1- 2*mz/η -> 1 | H82: (-)
D83: efektywna wysokość strefy ściskanej | F83: ξ1effz | G83: =IF(G82>0, 1 - SQRT(G82),0) -> 0 | H83: (-)
D84: wysokość strefy ściskanej klasycznie | F84: x1Kz | G84: =G83*d_lz/λ -> 0 | H84: mm
D85: efektywne ramie sił | F85: ζ1effz | G85: =IF(G82>0,(1+SQRT(1-2*mz)/η)/2,1) -> 1 | H85: (-)
D86: Zbrojenie Asll | F86: Asl1z | G86: =mz*G75/G85/f_yd*10000 -> 0 | H86: cm2
D87: Zbrojenie Asu | F87: Asu2z | G87: =IF(G80>0,G80*b/10*d_ly/10*f_cd/((1-a_uy /d_ly)*f_yd),0) -> 0 | H87: cm2
D88: Zbrojenie Asl+Asu | F88: Asl2z | G88: =G86+G87 -> 0 | H88: cm2
B89: Nośności przekroju
D90: ZGINANIE Y
D91: Siła w betonie | F91: F0cy | G91: =17/21*x_Ry*b*f_cd/1000 -> 488.6082546 | H91: kN
F92: FNy | G92: =IF(_x_y>1,(7/192*(1/_x_y-1)^2)*b*h*f_cd/1000,0) -> 0
F93: Fcy | G93: =F0_cy-F_Ny*(21+20*_x_y) -> 488.6082546 | H93: kN
D94: Moment w betonie | F94: M0cy | G94: =F0_cy*(d_0y-693/1666*x_Ry)/1000 -> 87.03783274 | H94: kNm
F95: Mcy | G95: =M0_cy+F_Ny*h*(7+8*_x_y+9*_x_y^2)/1000 -> 87.03783274
F96: εsly | G96: =IF(x_Ry<>0, 3.5*(d_ly/x_Ry),0) -> 12.73661308 | H96: ‰
D97: Odkształcenia w stali | F97: znak εsly | G97: =SIGN(ε_sly) -> 1
F98: |εly| | G98: =ABS(ε_sly) -> 12.73661308 | H98: ‰
F99: εsuy | G99: =IF(x_Ry<>0, 3.5*(1-d_uy/x_Ry),0) -> 2.257403602 | H99: ‰
F100: znak εsuy | G100: =SIGN(ε_suy) -> 1
F101: |εsuy| | G101: =ABS(ε_suy) -> 2.257403602 | H101: ‰
D102: Naprężenia w stali | F102: σsly | G102: =IF(G98>ε_sy, G97*f_yd, ε_sly*E_s) -> 309.5652174 | H102: MPa
F103: σsu | G103: =IF(G101>ε_sy, G100*f_yd, ε_suy*E_s) -> 309.5652174 | H103: MPa
D104: Siła stal dolna | F104: Fsly | G104: =n_ly*A_1ly*G102/10 -> 393.8737642 | H104: kN
D105: Siła stal górna | F105: Fsuy | G105: =n_uy*A_1uy*G103/10 -> 70.02200252 | H105: kN
F106: NRy | G106: =F_cy+G105-G104 -> 164.7564929 | H106: kN
F107: MRy | G107: =M_cy+(G105*(d_0y-a_uy)+G104*(d_0y-a_ly))/1000 -> 172.8585496 | H107: kNm
D108: ZGINANIE Z
D109: Siła w betonie | F109: F0cz | G109: =17/21*x_Rz*h*f_cd/1000 -> 0 | H109: kN
F110: FNz | G110: =IF(_x_z>1,(7/192*(1/_x_z-1)^2)*b*h*f_cd/1000,0) -> 0
F111: Fcz | G111: =F0_cz-F_Nz*(21+20*_x_z) -> 0
D112: Moment w betonie | F112: M0cz | G112: =F_cz*(d_0z-693/1666*x_Rz)/1000 -> 0 | H112: kNm
F113: Mcz | G113: =M0_cz+F_Nz*b*(7+8*_x_z+9*_x_z^2)/1000 -> 0
F114: εslz | G114: =IF(x_Rz<>0,3.5*(d_lz/x_Rz),0) -> 0 | H114: ‰
D115: Odkształcenia w stali | F115: znak εslZ | G115: =SIGN(G114) -> 0
F116: |εslz| | G116: =ABS(G114) -> 0 | H116: ‰
F117: εsuz | G117: =IF(x_Rz<>0, 3.5*(1-d_uz/x_Rz),0) -> 0 | H117: ‰
F118: znak εsuz | G118: =SIGN(G117) -> 0
F119: |εsuz| | G119: =ABS(G117) -> 0 | H119: ‰
F120: σslz | G120: =IF(G116>ε_sy,f_yd,G114*E_s) -> 0 | H120: MPa
F121: σsuz | G121: =IF(G119>ε_sy,f_yd*G118,G117*E_s) -> 0 | H121: MPa
F122: Fslz | G122: =n_lz*A_1lz*G120/10 -> 0 | H122: kN
F123: Fsuz | G123: =n_uz*A_1uz*G121/10 -> 0 | H123: kN
F124: NRz | G124: =F_cz+G123-G122 -> 0 | H124: kN
F125: MRz | G125: =G112+(G123*(d_0z-a_uz)+G122*(d_0z-a_lz))/1000 -> 0 | H125: kNm
D127: ŚCISKANIE X | F127: Ac | G127: =b*h/100 -> 1350 | H127: cm2
D128: Pole betonu | F128: ΣAs | G128: =(A_suy+A_sly+A_suz+A_slz)/100 -> 22.33672377 | H128: cm2
D129: Suma pola zbrojenia | F129: NRdx | G129: =G127*f_cd+G128*f_yd/10 -> 24798.61013 | H129: kN
D130: Max nośność przekroju | F130: nx | G130: =N_x/N_Rdx -> 0
F131: nNy | G131: =IF(M_z=0,1, 1/2+(1/(nx+1)-3/4)^0.5) -> 1
F132: nNz | G132: =IF(M_y=0,1,1-n_Ny) -> 0
F133: αy | G133: =0.9259*n_Ny^2+0.09526*n_Ny+0.9815 -> 2.00266
D134: Wsp interkacji | F134: αz | G134: =0.9259*n_Nz^2+0.09526*n_Nz+0.9815 -> 0.9815

Sheet Arkusz1
C2: Schemat | D2: Moment [kNm] | E2: Punkt: A,B-stopy, C,D-głowice
E3: A | F3: B | G3: C | H3: D
C4: V | D4: MI | E4: -140.39 | F4: 140.39 | G4: -282.88 | H4: 282.88
D5: MII | E5: -157.79 | F5: 157.79 | G5: -283.17 | H5: 283.17
C6: V+H(-) | D6: MI | E6: -172.14 | F6: 108.64 | G6: -282.88 | H6: 282.88
D7: MII | E7: -367.76 | F7: -52.2 | G7: -283.58 | H7: 282.7
C8: V+H(-)+q(++) | D8: MI | E8: -201.56 | F8: 79.23 | G8: -282.88 | H8: 282.88
D9: MII | E9: -517.98 | F9: -202.43 | G9: -283.86 | H9: -282.38
C10: V+H(-)+q(--) | D10: MI | E10: -164.82 | F10: 101.32 | G10: -282.88 | H10: 282.88
D11: MII | E11: -360.07 | F11: -60.33 | G11: -283.61 | H11: 282.69
C12: V+H(-)+q(+-) | D12: MI | E12: -142.73 | F12: 138.06 | G12: -282.88 | H12: 282.88
D13: MII | E13: -217.54 | F13: 98.04 | G13: -283.29 | H13: 283.03
C14: V+H(-)+q(-+) | D14: MI | E14: -179.47 | F14: 115.97 | G14: -282.88 | H14: 282.88
D15: MII | E15: -375.44 | F15: -44.07 | G15: -283.55 | H15: 282.72
